{"text_format":"1","workbook":"xlsx","n_sheets":3,"sheets":["Colors","Quadres","Resultats"],"not_rendered":{"charts":0,"images":4,"macros":1,"external_links":0,"defined_names":0,"comments":2,"pivot_tables":0},"unopened":[],"bounds":{"document_bytes":16777216,"sheet_cells":100000,"rows_first":2000,"rows_last":500,"rows_between":2000,"halvings":0,"cell_chars":16384,"cell_head_chars":4096},"cells_cut":0,"cells_raw":0,"read":"whole","date_system":"1900"}

{"sheet":"Colors","index":0,"n_rows":28,"n_cols":18,"rows_kept":28,"cut":false,"hidden":false,"merged":[[21,17,21,18],[17,17,17,18],[9,17,15,18],[1,17,1,18],[19,17,19,18],[5,1,5,10],[5,12,5,17],[6,12,6,17],[7,12,7,17],[3,17,3,18]]}
[]
[null,null,1,null,null,null,null,null,null,null,"<",null,null,null,null,null,"<","INSTRUCCIONS"]
[null,null,1,null,null,null,null,null,null,null,"<"]
[null,null,null,null,null,null,null,null,null,null,null,null,null,null,null,null,"<","Versió 140222"]
["Manquen",0,1,2,3,4,5,6,7,8,9]
[null,"Codi : 140223095039",null,null,null,null,null,null,null,null,null,null,"jocs@bcjgrup.com"]
["Colors",null,null,null,null,null,null,null,null,null,null,null,"www.bcjgrup.com"]
["Dígit",null,null,null,null,null,null,null,null,null,null,"<","www.bcjgrup.blogspot.com"]
[]
[null,null,"+",null,"=",null,null,null,null,null,null,null,null,null,null,null,null,"Per poder funcionar \naquest full necesita\nQue les macros\nestiguin activades"]
[]
[null,null,"+",null,"="]
[]
[null,null,"+",null,"="]
[]
[null,null,"+",null,"="]
[]
[null,null,"+",null,"="]
[]
[null,null,"+",null,"="]
[]
[null,null,"+",null,"="]
[]
[null,null,"+",null,"="]
[]
[null,null,"+",null,"="]
[]
[null,null,"+",null,"="]

{"sheet":"Quadres","index":1,"n_rows":27,"n_cols":10,"rows_kept":27,"cut":false,"hidden":false,"merged":[[9,9,15,12],[7,8,7,13],[3,9,3,11],[3,4,3,7],[6,0,6,1],[5,8,5,13],[6,8,6,13]]}
[]
[]
[]
[null,null,null,null,"INSTRUCCIONS",null,null,null,null,{"$f":"Colors!R4","v":"Versió 140222"}]
[]
[null,null,{"$f":"IF(C7<>\"\",SUM(C8:C27),\"\")","v":0},{"$f":"IF(D7<>\"\",SUM(D8:D27),\"\")","v":0},{"$f":"IF(E7<>\"\",SUM(E8:E27),\"\")","v":""},{"$f":"IF(F7<>\"\",SUM(F8:F27),\"\")","v":""},{"$f":"IF(G7<>\"\",SUM(G8:G27),\"\")","v":""},null,"jocs@bcjgrup.com"]
[null,null,{"$f":"IF(Resultats!Z$2<>\"\",Resultats!Z1,\"\")","v":7},{"$f":"IF(Resultats!AA$2<>\"\",Resultats!AA1,\"\")","v":4},{"$f":"IF(Resultats!AB$2<>\"\",Resultats!AB1,\"\")","v":""},{"$f":"IF(Resultats!AC$2<>\"\",Resultats!AC1,\"\")","v":""},{"$f":"IF(Resultats!AD$2<>\"\",Resultats!AD1,\"\")","v":""},null,"www.bcjgrup.com"]
[{"$f":"IF(B8<>\"\",SUM(C8:G8),\"\")","v":0},{"$f":"IF(Resultats!Z2<>\"\",Resultats!Y2,\"\")","v":6},null,null,null,null,null,null,"www.bcjgrup.blogspot.com"]
[{"$f":"IF(B9<>\"\",SUM(C9:G9),\"\")","v":0},{"$f":"IF(Resultats!Z3<>\"\",Resultats!Y3,\"\")","v":5}]
[{"$f":"IF(B10<>\"\",SUM(C10:G10),\"\")","v":""},{"$f":"IF(Resultats!Z4<>\"\",Resultats!Y4,\"\")","v":""},null,null,null,null,null,null,null,"Per poder funcionar \naquest full necesita\nQue les macros\nestiguin activades"]
[{"$f":"IF(B11<>\"\",SUM(C11:G11),\"\")","v":""},{"$f":"IF(Resultats!Z5<>\"\",Resultats!Y5,\"\")","v":""}]
["",{"$f":"IF(Resultats!Z6<>\"\",Resultats!Y6,\"\")","v":""}]
["",{"$f":"IF(Resultats!Z7<>\"\",Resultats!Y7,\"\")","v":""}]
["",{"$f":"IF(Resultats!Z8<>\"\",Resultats!Y8,\"\")","v":""}]
["",{"$f":"IF(Resultats!Z9<>\"\",Resultats!Y9,\"\")","v":""}]
["",{"$f":"IF(Resultats!Z10<>\"\",Resultats!Y10,\"\")","v":""}]
["",{"$f":"IF(Resultats!Z11<>\"\",Resultats!Y11,\"\")","v":""}]
["",{"$f":"IF(Resultats!Z12<>\"\",Resultats!Y12,\"\")","v":""}]
["",{"$f":"IF(Resultats!Z13<>\"\",Resultats!Y13,\"\")","v":""}]
["",{"$f":"IF(Resultats!Z14<>\"\",Resultats!Y14,\"\")","v":""}]
["",{"$f":"IF(Resultats!Z15<>\"\",Resultats!Y15,\"\")","v":""}]
["",{"$f":"IF(Resultats!Z16<>\"\",Resultats!Y16,\"\")","v":""}]
["",{"$f":"IF(Resultats!Z17<>\"\",Resultats!Y17,\"\")","v":""}]
["",{"$f":"IF(Resultats!Z18<>\"\",Resultats!Y18,\"\")","v":""}]
["",{"$f":"IF(Resultats!Z19<>\"\",Resultats!Y19,\"\")","v":""}]
["",{"$f":"IF(Resultats!Z20<>\"\",Resultats!Y20,\"\")","v":""}]
["",{"$f":"IF(Resultats!Z21<>\"\",Resultats!Y21,\"\")","v":""}]

{"sheet":"Resultats","index":2,"n_rows":52,"n_cols":31,"rows_kept":52,"cut":false,"hidden":true,"merged":[]}
[7,9,1,5,0,8,3,4,2,6,{"$f":"Colors!C2","v":1},{"$f":"INDEX(U1:W14,K1,1)","v":1},{"$f":"INDEX(U1:W14,K1,2)","v":1},{"$f":"INDEX(U1:W14,K1,3)","v":"+"},{"$f":"Colors!C3","v":1},{"$f":"INDEX(U19:U23,O1,1)","v":10},null,null,null,"Sumes 1 dígits",1,1,"+",null,null,{"$f":"SUM(Z2:Z11)","v":7},{"$f":"SUM(AA2:AA11)","v":4},{"$f":"SUM(AB2:AB11)","v":0},{"$f":"SUM(AC2:AC11)","v":0},{"$f":"SUM(AD2:AD11)","v":0}]
[5,0,null,null,null,null,null,null,null,null,0,0,0,0,5,null,null,null,null,"Sumes 2 dígits",2,2,"+",null,{"$f":"SUM(Z2:AD2)","v":6},3,3,null,null,null,1]
[4,3,null,null,null,null,null,null,null,null,0,0,0,0,7,null,null,null,null,"Sumes 3 dígits",3,3,"+",null,{"$f":"SUM(Z3:AD3)","v":5},4,1,null,null,null,3]
[6,9,null,null,null,null,null,null,null,null,0,0,0,1,5,null,null,null,null,"Sumes 4 dígits",4,4,"+",null,0]
[5,8,null,null,null,null,null,null,null,null,0,0,0,1,3,null,null,null,null,"Restes 2-1",2,1,"-",null,0]
[2,1,null,null,null,null,null,null,null,null,0,0,0,0,3,null,null,null,null,"Restes 3-2",3,2,"-",null,0]
[8,6,null,null,null,null,null,null,null,null,0,0,0,1,4,null,null,null,null,"Restes 4-3",4,3,"-",null,0]
[4,3,null,null,null,null,null,null,null,null,0,0,0,0,7,null,null,null,null,"Multiplicacions 1x1",1,1,"X",null,0]
[3,0,null,null,null,null,null,null,null,null,0,0,0,0,3,null,null,null,null,"Multiplicacions 1x2",1,2,"X",null,0]
[7,5,null,null,null,null,null,null,null,null,0,0,0,1,2,null,null,null,null,"Multiplicacions 1x3",1,3,"X",null,0]
[9,3,null,null,null,null,null,null,null,null,0,0,0,1,2,null,null,null,null,"Multiplicacions 1x4",1,4,"X",null,0]
[0,9,8,4,7,8,6,4,null,null,0,0,0,0,9,null,null,null,null,"Multiplicacions 2x2",2,2,"X",null,{"$f":"SUM(Z12:AD12)","v":0}]
[5,8,9,7,7,3,2,5,null,null,0,0,0,1,3,null,null,null,null,"Multiplicacions 2x3",2,3,"X",null,0]
[3,1,4,1,8,7,3,3,null,null,0,0,0,0,4,null,null,null,null,"Multiplicacions 2x4",2,4,"X",null,0]
[8,3,3,4,7,0,0,5,null,null,0,0,0,1,1,null,null,null,null,null,null,null,null,null,0]
[2,5,8,1,3,0,4,5,null,null,0,0,0,0,7,null,null,null,null,null,null,null,null,null,0]
[0,2,2,6,6,8,3,4,null,null,0,0,0,0,2,null,null,null,null,null,null,null,null,null,0]
[4,4,2,6,5,0,2,0,null,null,0,0,0,0,8,null,null,null,null,null,null,null,null,null,0]
[9,8,0,4,7,9,0,1,null,null,0,0,0,1,7,null,null,null,null,"10 operacions",10,null,null,null,0]
[9,4,7,2,6,0,6,0,null,null,0,0,0,1,3,null,null,null,null,"15 operacions",15,null,null,null,0]
[0,3,4,3,3,8,5,7,null,null,0,0,0,0,3,null,null,null,null,"20 operacions",20,null,null,null,0]
[8,9,3,9,8,6,9,0,null,null,0,0,0,1,7,null,null,null,null,"25 operacions",25]
[2,8,4,9,7,5,7,5,null,null,0,0,0,1,0,null,null,null,null,"30 operacions",30]
[1,1,6,9,0,5,7,4,null,null,0,0,0,0,2]
[9,0,6,8,1,5,4,5,null,null,0,0,0,0,9]
[2,8,8,4,8,2,7,2,null,null,0,0,0,1,0,null,null,null,null,null,1,{"$f":"INDEX(U27:U45,U26,1)","v":2}]
[2,6,9,6,1,4,3,8,null,null,0,0,0,0,8,null,null,null,null,{"$f":"CONCATENATE(ROW()-25,\" Files\")","v":"2 Files"},{"$f":"ROW()-25","v":2}]
[6,9,9,9,5,9,9,0,null,null,0,0,0,1,5,null,null,null,null,{"$f":"CONCATENATE(ROW()-25,\" Files\")","v":"3 Files"},{"$f":"ROW()-25","v":3}]
[9,5,5,8,4,0,5,8,null,null,0,0,0,1,4,null,null,null,null,"4 Files",4]
[9,6,5,7,3,6,0,1,null,null,0,0,0,1,5,null,null,null,null,"5 Files",5]
[8,9,2,7,5,0,8,8,null,null,0,0,0,1,7,null,null,null,null,"6 Files",6]
[null,null,null,null,null,null,null,null,null,null,null,null,null,null,null,null,null,null,null,"7 Files",7]
[null,null,null,null,null,null,null,null,null,null,null,null,null,null,null,null,null,null,null,"8 Files",8]
[null,null,null,null,null,null,null,null,null,null,null,null,null,null,null,null,null,null,null,"9 Files",9]
[null,null,null,null,null,null,null,null,null,null,null,null,null,null,null,null,null,null,null,"10 Files",10]
[null,null,null,null,null,null,null,null,null,null,null,null,null,null,null,null,null,null,null,"11 Files",11]
[null,null,null,null,null,null,null,null,null,null,null,null,null,null,null,null,null,null,null,"12 Files",12]
[null,null,null,null,null,null,null,null,null,null,null,null,null,null,null,null,null,null,null,"13 Files",13]
[null,null,null,null,null,null,null,null,null,null,null,null,null,null,null,null,null,null,null,"14 Files",14]
[null,null,null,null,null,null,null,null,null,null,null,null,null,null,null,null,null,null,null,"15 Files",15]
[null,null,null,null,null,null,null,null,null,null,null,null,null,null,null,null,null,null,null,"16 Files",16]
[null,null,null,null,null,null,null,null,null,null,null,null,null,null,null,null,null,null,null,"17 Files",17]
[null,null,null,null,null,null,null,null,null,null,null,null,null,null,null,null,null,null,null,"18 Files",18]
[null,null,null,null,null,null,null,null,null,null,null,null,null,null,null,null,null,null,null,"19 Files",19]
[null,null,null,null,null,null,null,null,null,null,null,null,null,null,null,null,null,null,null,"20 Files",20]
[]
[]
[null,null,null,null,null,null,null,null,null,null,null,null,null,null,null,null,null,null,null,null,1,{"$f":"INDEX(U49:U52,U48,1)","v":2}]
[null,null,null,null,null,null,null,null,null,null,null,null,null,null,null,null,null,null,null,{"$f":"CONCATENATE(ROW()-47,\" Columnes\")","v":"2 Columnes"},{"$f":"ROW()-47","v":2}]
[null,null,null,null,null,null,null,null,null,null,null,null,null,null,null,null,null,null,null,{"$f":"CONCATENATE(ROW()-47,\" Columnes\")","v":"3 Columnes"},{"$f":"ROW()-47","v":3}]
[null,null,null,null,null,null,null,null,null,null,null,null,null,null,null,null,null,null,null,{"$f":"CONCATENATE(ROW()-47,\" Columnes\")","v":"4 Columnes"},{"$f":"ROW()-47","v":4}]
[null,null,null,null,null,null,null,null,null,null,null,null,null,null,null,null,null,null,null,{"$f":"CONCATENATE(ROW()-47,\" Columnes\")","v":"5 Columnes"},{"$f":"ROW()-47","v":5}]